bitfinex-derivatives/quotes_ETHF0:USTF0_20250928
["timestamp","ask_amount","ask_price","bid_price","bid_amount"]
[1759072543435,7.06364584,4024.6,4024.5,0.44705]
[1759072545433,7.06364584,4024.6,4023.9,3.2078]
[1759072545731,1.09051852,4024.0,4023.9,3.5162]
[1759072545932,1.34151852,4024.0,4023.9,3.5162]
[1759072547038,1.34151852,4024.0,4023.9,3.96332]
[1759072547229,1.87676798,4024.0,4023.9,3.96332]
[1759072548736,1.87676798,4024.0,4023.9,4.18452]
[1759072556251,1.87676798,4024.0,4023.9,4.38942]
[1759072562257,2.14508522,4024.0,4023.9,4.38942]
[1759072564862,1.89408522,4024.0,4023.9,4.38942]
[1759072565065,2.14508522,4024.0,4023.9,4.38942]
[1759072572559,1.89408522,4024.0,4023.9,4.38942]
[1759072572761,2.14508522,4024.0,4023.9,4.38942]
[1759072573962,2.14508522,4024.0,4023.9,3.96332]
[1759072574260,2.14508522,4024.0,4023.9,0.75552]
[1759072577162,2.14508522,4024.0,4023.9,0.3084]
[1759072579565,7.14508522,4024.0,4023.9,0.3084]
[1759072579869,0.5796,4023.5,4023.4,3.65498]
[1759072580171,1.36584946,4023.5,4023.4,3.87028]
[1759072581770,1.36584946,4023.5,4023.4,4.20578]
[1759072582070,1.22364946,4023.5,4023.4,4.20578]
[1759072582867,1.36584946,4023.5,4023.4,0.5508]
[1759072583061,1.36584946,4023.5,4023.4,0.3355]
[1759072584565,0.5614,4023.1,4023.0,0.4694]
[1759072584870,1.34764946,4023.1,4023.0,0.4694]
[1759072586272,1.34764946,4023.1,4023.0,0.6959]
[1759072587858,0.53524946,4023.1,4023.0,0.9148]
[1759072588066,3.2078,4023.8,4023.7,0.7846]
[1759072588260,5.1017049,4023.8,4023.7,0.7846]
[1759072588459,5.3527049,4023.8,4023.7,0.7846]
[1759072588965,5.3527049,4023.8,4023.6,0.44716]
[1759072588966,0.52,4023.7,4023.6,0.44716]
[1759072589264,0.7269,4023.4,4023.3,0.67369]
[1759072589461,2.8718049,4023.4,4023.3,0.67369]
[1759072591575,2.8718049,4023.4,4023.0,0.3392]
[1759072591877,0.7269,4023.1,4023.0,1.01293]
[1759072592176,1.51296914,4023.1,4023.0,1.01293]
[1759072592375,1.51296914,4023.1,4023.0,1.23183]
[1759072593179,2.8718049,4023.1,4023.0,1.23183]
[1759072594976,0.78606914,4023.1,4023.0,1.28923]
[1759072595882,1.09396914,4023.1,4023.0,1.28923]
[1759072597082,1.30606914,4023.1,4023.0,1.23183]
[1759072598976,0.53506914,4023.1,4023.0,1.28923]
[1759072599278,0.78606914,4023.1,4023.0,1.28923]
[1759072599683,1.09396914,4023.1,4023.0,1.28923]
[1759072599980,0.78606914,4023.1,4023.0,1.28923]
[1759072604182,0.53506914,4023.1,4023.0,1.28923]
[1759072604385,0.53506914,4023.1,4023.0,6.28923]
[1759072604689,0.251,4023.2,4023.1,0.4454]
[1759072604882,0.78636721,4023.2,4023.1,0.7846]
[1759072606090,0.53536721,4023.2,4023.1,0.7846]
[1759072608292,0.5589,4023.5,4023.4,0.7846]
[1759072608486,1.09428901,4023.5,4023.4,3.9924]
[1759072608692,1.30638901,4023.5,4023.4,3.9924]
[1759072609189,1.30638901,4023.5,4023.4,4.43957]
[1759072610290,1.09428901,4023.5,4023.4,4.43957]
[1759072610791,1.05538901,4023.5,4023.4,4.43957]
[1759072611090,1.30638901,4023.5,4023.4,4.43957]
[1759072612991,1.05538901,4023.5,4023.4,4.43957]
[1759072613191,1.30638901,4023.5,4023.4,4.43957]
[1759072615092,1.64808901,4023.5,4023.4,4.43957]
[1759072622199,2.73867573,4023.5,4023.4,4.43957]
[1759072627412,1.09428901,4023.5,4023.4,4.43957]
[1759072627608,1.62597573,4023.5,4023.4,4.43957]
[1759072628106,1.87697573,4023.5,4023.4,4.43957]
[1759072629409,0.53538901,4023.5,4023.4,4.43957]
[1759072629611,0.46332884,4023.5,4023.4,10.53015672]
[1759072637913,0.3329,4023.9,4023.8,0.44711]
[1759072638110,0.3329,4023.9,4023.8,1.22341]
[1759072641225,1.42348672,4024.0,4023.9,0.7763]
[1759072641424,1.42348672,4024.0,4023.9,3.9841]
[1759072641726,0.86928894,4024.0,4023.9,3.9841]
[1759072641920,0.53638894,4024.0,4023.9,3.9841]
[1759072642815,0.3329,4024.3,4024.2,0.4436]
[1759072643011,0.86911801,4024.3,4024.2,0.7763]
[1759072643517,0.86911801,4024.3,4024.2,1.22337]
[1759072646922,1.42458672,4024.4,4024.3,0.307]
[1759072647124,0.53579423,4024.4,4024.3,0.7387]
[1759072647426,1.09291404,4024.6,4024.5,0.5592]
[1759072647427,0.00232732,4024.6,4024.5,0.5592]
[1759072647626,0.53799505,4024.6,4024.5,4.074]
[1759072648017,0.00232732,4024.6,4024.5,4.074]
[1759072649832,0.00232732,4024.6,4024.5,9.325]
[1759072651232,0.5413,4025.5,4025.4,1.18563]
[1759072651430,0.5413,4025.5,4025.4,4.39343]
[1759072652231,0.33625777,4025.5,4025.4,4.39343]
[1759072652627,0.54355777,4025.5,4025.4,4.39343]
[1759072656229,0.33625777,4025.5,4025.4,4.39343]
[1759072657636,0.00225777,4025.5,4025.4,4.39343]
[1759072658030,0.33625777,4025.5,4025.4,4.39343]
[1759072661346,0.00225777,4025.5,4025.4,4.39343]
[1759072661637,0.00225777,4025.5,4025.4,5.73501672]
[1759072662045,0.00225777,4025.5,4025.4,5.90677755]
[1759072663341,0.00225777,4025.5,4025.4,5.73501672]
[1759072665936,0.00225777,4025.5,4025.4,4.64443]
[1759072666139,0.89445777,4025.5,4025.4,4.33743]
[1759072666342,0.89445777,4025.5,4025.4,4.12643]
[1759072666654,0.89445777,4025.5,4025.4,3.2078]
[1759072666844,5.89445777,4025.5,4025.4,3.2078]
[1759072667145,6.42722417,4025.5,4025.4,3.2078]
[1759072672847,5.89445777,4025.5,4025.4,3.2078]
[1759072673250,6.42824833,4025.5,4025.4,3.2078]
[1759072673550,5.89445777,4025.5,4025.4,3.2078]
[1759072674744,6.14545777,4025.5,4025.4,3.2078]
[1759072675151,5.89445777,4025.5,4025.4,3.2078]
[1759072675452,6.14545777,4025.5,4025.4,3.2078]
[1759072675853,6.67958532,4025.5,4025.4,3.2078]
[1759072676651,0.3189,4025.4,4025.3,0.44693]
[1759072676851,2.36901427,4025.4,4025.3,0.44693]
[1759072679953,2.62001427,4025.4,4025.3,1.22213]
[1759072680149,1.27842755,4025.4,4025.3,1.22213]
[1759072680350,0.53412755,4025.4,4025.3,1.22213]
[1759072680554,1.31272755,4025.4,4025.3,1.22213]
[1759072681155,0.53412755,4025.4,4025.3,1.22213]
[1759072681355,0.00225777,4025.5,4025.4,0.5498]
[1759072681561,0.00225777,4025.5,4025.4,3.983]
[1759072681959,0.00225777,4025.5,4025.4,10.07358672]
[1759072682452,0.00225777,4025.5,4025.4,10.32458672]
[1759072684359,0.00225777,4025.5,4025.4,9.234]
[1759072686360,0.00225777,4025.5,4025.4,8.983]
[1759072686566,0.88195777,4025.5,4025.4,3.983]
[1759072686866,2.2390321,4025.5,4025.4,3.6535]
[1759072688061,2.77300845,4025.5,4025.4,3.2078]
[1759072688564,7.77300845,4025.5,4025.4,3.2078]
[1759072692064,8.02400845,4025.5,4025.4,3.2078]
[1759072694674,1.31483412,4025.5,4025.4,3.9848]
[1759072694872,1.06383412,4025.5,4025.4,3.9848]
[1759072695171,3.01830845,4025.5,4025.4,3.9848]
[1759072696164,2.42090845,4025.5,4025.4,3.9848]
[1759072696467,1.10613412,4025.5,4025.4,3.9848]
[1759072697764,0.53623412,4025.5,4025.4,3.9848]
[1759072697970,0.00225777,4025.5,4025.4,3.9848]
[1759072699873,0.00225777,4025.5,4025.4,8.9848]
[1759072719395,0.00225777,4025.5,4025.4,3.9848]
[1759072723801,0.31985777,4025.5,4025.4,3.9848]
[1759072725098,0.00225777,4025.5,4025.4,3.9848]
[1759072727900,0.2158,4026.5,4026.4,1.23254]
[1759072728097,0.2158,4026.5,4026.4,4.44034]
[1759072728298,0.75119512,4026.5,4026.4,4.44034]
[1759072728802,0.75296058,4026.5,4026.4,4.44320365]
[1759072729195,0.75296058,4026.5,4026.4,4.69420365]
[1759072729604,0.53716058,4026.5,4026.4,4.69420365]
[1759072731100,0.00176546,4026.5,4026.4,4.69420365]
[1759072734309,0.00176546,4026.5,4026.4,6.05127798]
[1759072735102,1.92637433,4028.0,4027.9,0.44668]
[1759072735300,2.45884423,4028.0,4027.9,0.44668]
[1759072735501,2.76794423,4028.0,4027.9,0.44668]
[1759072735900,2.7699427,4028.0,4027.9,0.44668]
[1759072738011,2.7699427,4028.0,4027.7,0.44669]
[1759072738310,0.4341,4027.7,4027.1,0.3077]
[1759072738505,0.5324699,4027.6,4027.3,0.75444]
[1759072738707,0.7824699,4027.5,4027.4,0.3077]
[1759072739502,2.13954423,4027.5,4027.4,0.3077]
[1759072744105,1.88954423,4027.5,4027.4,0.3077]
[1759072744402,1.87108959,4027.5,4027.4,0.3077]
[1759072745507,1.62108959,4027.5,4027.4,0.3077]
[1759072745712,1.87108959,4027.5,4027.4,0.3077]
[1759072749105,2.95970928,4027.5,4027.4,0.3077]
[1759072749701,1.62108959,4027.5,4027.4,0.3077]
[1759072749907,1.87108959,4027.5,4027.4,0.3077]
[1759072752711,1.62108959,4027.5,4027.4,0.3077]
[1759072752935,2.95970928,4027.5,4027.4,0.3077]
[1759072753117,2.70970928,4027.5,4027.4,0.3077]
[1759072753313,2.95970928,4027.5,4027.4,0.3077]
[1759072753509,7.95970928,4027.5,4027.4,0.3077]
[1759072753817,7.95970928,4027.5,4027.0,3.3309]
[1759072754017,1.08861969,4027.1,4027.0,3.3309]
[1759072754208,1.87108959,4027.1,4027.0,3.3309]
[1759072755713,1.87108959,4027.1,4027.0,0.4321]
[1759072756521,0.5324699,4027.1,4027.0,0.8589]
[1759072756709,1.87108959,4027.1,4027.0,0.8589]
[1759072758022,0.7824699,4027.1,4027.0,0.8589]
[1759072758223,1.62108959,4027.1,4027.0,0.8589]
[1759072758417,1.87108959,4027.1,4027.0,0.8589]
[1759072759423,1.62108959,4027.1,4027.0,0.8589]
[1759072759615,1.87108959,4027.1,4027.0,0.8589]
[1759072760122,0.7824699,4027.1,4027.0,0.8589]
[1759072762019,0.5324699,4027.1,4027.0,0.8589]
[1759072762213,0.7824699,4027.1,4027.0,0.8589]
[1759072763817,0.5324699,4027.1,4027.0,0.8589]
[1759072764015,0.7824699,4027.1,4027.0,0.8589]
[1759072764214,0.5324699,4027.1,4027.0,0.8589]
[1759072764617,1.62108959,4027.1,4027.0,0.8589]
[1759072765321,1.87108959,4027.1,4027.0,0.8589]
[1759072765516,0.5324699,4027.1,4027.0,0.8589]
[1759072770627,0.5324699,4027.1,4026.5,0.1231]
[1759072770628,5.5324699,4027.1,4026.5,0.1231]
[1759072770830,0.44683,4026.5,4025.8,0.4469]
[1759072771021,1.08861969,4025.9,4025.5,0.1347]
[1759072771221,1.08861969,4025.6,4025.5,0.1347]
[1759072771420,1.62108959,4025.6,4025.5,0.5615]
[1759072771828,1.62108959,4025.6,4025.5,0.56341367]
[1759072772028,0.7824699,4025.6,4025.5,0.56341367]
[1759072772233,1.87108959,4025.6,4025.5,0.56341367]
[1759072772526,1.08861969,4026.0,4025.5,0.56341367]
[1759072772719,0.53169121,4025.9,4025.8,0.4268]
[1759072772916,0.53169121,4025.9,4025.8,0.7476]
[1759072774233,0.53169121,4025.9,4025.8,0.98011]
[1759072774528,0.53169121,4025.9,4025.8,1.19451]
[1759072775532,1.33861969,4026.0,4025.8,0.87371]
[1759072775733,1.33861969,4026.0,4025.9,0.7476]
[1759072775933,1.8699201,4026.0,4025.9,0.7476]
[1759072778035,1.6199201,4026.0,4025.9,0.7476]
[1759072778237,1.8699201,4026.0,4025.9,0.7476]
[1759072778631,1.6199201,4026.0,4025.9,3.9554]
[1759072778835,3.2078,4026.6,4026.5,0.8833]
[1759072779136,5.07737745,4026.6,4026.5,1.11573]
[1759072779327,5.07737745,4026.6,4026.5,0.4565]
[1759072781323,1.86957745,4026.6,4026.5,0.4565]
[1759072781836,1.86957745,4026.6,4026.5,0.6689]
[1759072782943,1.86957745,4026.6,4026.5,0.4565]
[1759072783539,1.86957745,4026.6,4025.7,1.1173]
[1759072783540,14.02095776,4026.6,4025.5,0.00191367]
[1759072783731,1.08861969,4025.6,4025.5,0.58264]
[1759072783932,1.87357745,4025.6,4025.5,0.1357]
[1759072784633,1.87357745,4025.6,4025.5,0.13791413]
[1759072785836,1.87357745,4025.6,4025.5,0.45871413]
[1759072786027,1.61957745,4025.6,4025.5,0.67111413]
[1759072786235,1.87457745,4025.6,4025.5,0.88551413]
[1759072786428,1.87457745,4025.6,4025.5,0.45871413]
[1759072787738,1.87457745,4025.6,4025.5,0.13791413]
[1759072788043,1.87457745,4025.6,4024.4,1.11765]
[1759072788044,17.45319714,4025.6,4024.6,0.3208]
[1759072788238,17.45319714,4025.6,4024.0,0.1357]
[1759072788239,0.44706,4024.5,4024.3,0.3208]
[1759072788543,3.2078,4024.7,4024.6,0.3208]
[1759072788737,3.99410681,4024.7,4024.6,0.3208]
[1759072789040,3.99615438,4024.7,4024.6,0.32266412]
[1759072791539,0.44704,4024.6,4024.5,0.1357]
[1759072791741,8.27734681,4024.6,4024.5,0.4565]
[1759072792537,8.27734681,4024.6,4024.5,0.13766531]
[1759072792538,13.27734681,4024.6,4024.5,0.13766531]
[1759072793144,13.27734681,4024.6,4024.5,0.45846531]
[1759072794348,13.27734681,4024.6,4024.5,0.13766531]
[1759072794647,0.44708,4024.3,4024.1,0.3275]
[1759072794846,4.55241969,4024.2,4024.1,0.3275]
[1759072795148,14.65158458,4024.2,4024.1,0.3275]
[1759072795543,14.65158458,4024.2,4024.1,0.33014104]
[1759072798345,14.39558458,4024.2,4024.1,0.77204104]
[1759072798548,3.99296489,4024.2,4024.1,0.77204104]
[1759072798742,5.08158458,4024.2,4024.1,0.77204104]
[1759072799845,5.08158458,4024.2,4024.1,0.54614104]
[1759072800346,5.08158458,4024.2,4024.1,0.33014104]
[1759072800850,5.08158458,4024.2,4024.1,0.77204104]
[1759072801544,5.08058458,4024.2,4024.1,0.77204104]
[1759072803554,4.82558458,4024.2,4024.1,0.77204104]
[1759072803852,5.08058458,4024.2,4024.1,0.54614104]
[1759072805456,5.08058458,4024.2,4024.1,0.77204104]
[1759072805654,4.82558458,4024.2,4024.1,0.77204104]
[1759072805953,5.08058458,4024.2,4024.1,0.77204104]
[1759072806253,5.35055812,4024.2,4024.1,0.77204104]
[1759072812256,5.09555812,4024.2,4024.1,0.77204104]
[1759072812754,5.35055812,4024.2,4024.1,0.77204104]
[1759072813855,5.35055812,4024.2,4024.1,0.33014104]
[1759072815753,5.35055812,4024.2,4024.1,0.54734104]
[1759072818150,5.35055812,4024.2,4024.1,0.33014104]
[1759072822354,5.09555812,4024.2,4024.1,0.33014104]
[1759072822562,5.34955812,4024.2,4024.1,0.33014104]
[1759072822864,0.44712,4023.9,4023.8,0.3243]
[1759072823066,2.58887812,4023.9,4023.8,0.3243]
[1759072823764,2.58887812,4023.9,4023.8,0.32737607]
[1759072825667,2.14175812,4023.9,4023.8,0.32737607]
[1759072826370,1.88775812,4023.9,4023.8,0.32737607]
[1759072826566,2.14175812,4023.9,4023.8,0.54437607]
[1759072830069,5.34955812,4023.9,4023.8,0.54437607]
[1759072831275,5.09555812,4023.9,4023.8,0.75847607]
[1759072831475,5.34955812,4023.9,4023.8,0.75847607]
[1759072833073,5.09555812,4023.9,4023.8,0.75847607]
[1759072833380,5.34955812,4023.9,4023.8,0.75847607]
[1759072840985,5.09555812,4023.9,4023.8,0.75847607]
[1759072841286,5.34955812,4023.9,4023.8,0.75847607]
[1759072843786,5.34855812,4023.9,4023.8,0.75847607]
[1759072844381,5.34855812,4023.9,4023.8,0.54437607]
[1759072844688,5.09555812,4023.9,4023.8,0.54437607]
[1759072844891,5.34855812,4023.9,4023.8,0.54437607]
[1759072845992,5.34855812,4023.9,4023.8,0.75847607]
[1759072848091,5.09555812,4023.9,4023.8,0.75847607]
[1759072848292,5.34855812,4023.9,4023.8,0.75847607]
[1759072848489,5.35314221,4023.9,4023.8,0.75847607]
[1759072848791,5.10014221,4023.9,4023.8,0.75847607]
[1759072848992,5.35314221,4023.9,4023.8,0.75847607]
[1759072849697,5.10014221,4023.9,4023.8,0.75847607]
[1759072849885,5.35314221,4023.9,4023.8,0.75847607]
[1759072851902,5.10014221,4023.9,4023.8,0.75847607]
[1759072852194,5.35314221,4023.9,4023.8,0.75847607]
[1759072857490,5.10014221,4023.9,4023.8,0.75847607]
[1759072857697,5.35314221,4023.9,4023.8,0.75847607]
[1759072863603,5.10014221,4023.9,4023.8,0.75847607]
[1759072863903,5.35314221,4023.9,4023.8,0.75847607]
[1759072864702,5.10014221,4023.9,4023.8,0.75847607]
[1759072865005,5.35314221,4023.9,4023.8,0.75847607]
[1759072868305,5.08501247,4023.9,4023.8,0.75847607]
[1759072868608,4.83201247,4023.9,4023.8,0.75847607]
[1759072868805,5.08501247,4023.9,4023.8,0.75847607]
[1759072869705,1.87721247,4023.9,4023.8,0.75847607]
[1759072870897,1.62421247,4023.9,4023.8,0.75847607]
[1759072871102,1.87621247,4023.9,4023.8,0.75847607]
[1759072872710,1.62421247,4023.9,4023.8,0.75847607]
[1759072873009,1.87621247,4023.9,4023.8,0.75847607]
[1759072874398,1.62421247,4023.9,4023.8,0.75847607]
[1759072874609,1.87621247,4023.9,4023.8,0.54437607]
[1759072875406,1.87621247,4023.9,4023.8,0.76617607]
[1759072879317,1.62421247,4023.9,4023.8,0.76617607]
[1759072879511,1.87621247,4023.9,4023.8,0.76617607]
[1759072886013,1.62421247,4023.9,4023.8,0.76617607]
[1759072888615,0.53374898,4023.9,4023.8,0.76617607]
[1759072895729,8.98e-06,4023.9,4023.8,0.76617607]
[1759072895936,1.34246349,4024.4,4024.3,0.7572]
[1759072896627,1.34246349,4024.4,4024.3,1.20428]
[1759072898040,1.09046349,4024.4,4024.3,1.20428]
[1759072898339,1.34246349,4024.4,4024.3,1.20428]
[1759072899335,1.09046349,4024.4,4024.3,1.20428]
[1759072899641,3.2078,4024.6,4024.5,1.10965]
[1759072899942,3.4598,4024.6,4024.5,1.10965]
[1759072900932,3.4598,4024.6,4024.5,0.89765]
[1759072902237,3.2078,4024.6,4024.5,0.89765]
[1759072902439,3.4588,4024.6,4024.5,0.89765]
[1759072907743,3.98812337,4024.6,4024.5,0.89765]
[1759072908339,3.73712337,4024.6,4024.5,0.89765]
[1759072908542,3.98812337,4024.6,4024.5,0.89765]
[1759072908938,4.82758686,4024.6,4024.5,1.10965]
[1759072909244,5.07858686,4024.6,4024.5,1.33625]
[1759072910341,4.82758686,4024.6,4024.5,1.33625]
[1759072910545,5.07858686,4024.6,4024.5,1.33625]
[1759072911344,5.52562686,4024.6,4024.0,0.132]
[1759072911545,1.09046349,4024.2,4023.8,0.32167607]
[1759072911844,1.09046349,4023.9,4023.8,0.76880607]
[1759072912034,1.87078686,4023.9,4023.8,0.76880607]
[1759072919852,1.87078686,4023.9,4023.8,0.99280607]
[1759072920143,1.87078686,4023.9,4023.8,1.20830607]
[1759072920846,1.61978686,4023.9,4023.8,1.20830607]
[1759072921046,1.87078686,4023.9,4023.8,1.20830607]
[1759072922346,1.87078686,4023.9,4023.8,0.99280607]
[1759072922535,1.87078686,4023.9,4023.8,0.76880607]
[1759072922944,1.87078686,4023.9,4023.8,0.99280607]
[1759072924247,1.87078686,4023.9,4023.8,1.20830607]
[1759072929748,1.87078686,4023.9,4023.8,0.99280607]
[1759072930449,2.13928745,4023.9,4023.8,0.99280607]
[1759072930639,2.13861711,4023.9,4023.8,0.99280607]
[1759072933051,2.13861711,4023.9,4023.8,0.76880607]
[1759072933954,2.13861711,4023.9,4023.8,0.99630607]
[1759072937754,2.13861711,4023.9,4023.8,1.20650607]
[1759072938554,1.60996408,4023.9,4023.8,1.20650607]
[1759072938748,2.13887523,4023.9,4023.8,1.20650607]
[1759072940049,1.88787523,4023.9,4023.8,1.20650607]
[1759072940351,2.13887523,4023.9,4023.8,1.20650607]
[1759072943353,0.52891115,4023.9,4023.8,1.20650607]
[1759072943551,0.77991115,4023.9,4023.8,1.20650607]
[1759072946649,0.52891115,4023.9,4023.8,1.20650607]
[1759072946855,0.77991115,4023.9,4023.8,1.20650607]
[1759072954161,0.77991115,4023.9,4023.8,0.99630607]
[1759072954657,5.77991115,4023.9,4023.8,0.32167607]
[1759072958265,5.52891115,4023.9,4023.8,0.32167607]
[1759072958466,5.77991115,4023.9,4023.8,0.32167607]
[1759072959470,0.77991115,4023.9,4023.8,0.32167607]
[1759072961073,0.77991115,4023.9,4023.8,0.73977607]
[1759072962070,0.77991115,4023.9,4023.8,0.53177607]
[1759072964664,0.77991115,4023.9,4023.8,0.00307607]
[1759072964855,0.77991115,4023.9,4023.8,0.32467607]
[1759072965061,0.44715,4023.6,4023.5,0.4573]
[1759072965260,5.79382523,4023.6,4023.5,0.4573]
[1759072965969,5.79382523,4023.6,4023.5,0.4591954]
[1759072967062,10.79382523,4023.6,4023.5,0.4591954]
[1759072968961,0.4472,4023.2,4023.1,0.3216]
[1759072969265,2.58607523,4023.2,4023.1,0.3216]
[1759072970169,2.58607523,4023.2,4023.1,0.32389549]
[1759072973562,2.58607523,4023.2,4023.1,0.53399549]
[1759072979764,2.13887523,4023.2,4023.1,0.76029549]
[1759072980473,1.88787523,4023.2,4023.1,0.76029549]
[1759072980675,2.13887523,4023.2,4023.1,0.76029549]
[1759072985270,1.88787523,4023.2,4023.1,0.76029549]
[1759072985664,2.13887523,4023.2,4023.1,0.76029549]
[1759072988880,1.88787523,4023.2,4023.1,0.76029549]
[1759072989081,2.13887523,4023.2,4023.1,0.76029549]
[1759072990385,1.8708294,4023.2,4023.1,0.76029549]
[1759072995098,1.6198294,4023.2,4023.1,0.76029549]
[1759072995290,1.8708294,4023.2,4023.1,0.76029549]
[1759072999798,1.6198294,4023.2,4023.1,0.76029549]
[1759072999999,1.8708294,4023.2,4023.1,0.76029549]
[1759073000400,1.6198294,4023.2,4023.1,0.76029549]
[1759073000800,1.8708294,4023.2,4023.1,0.76029549]
[1759073002406,1.8708294,4023.2,4023.1,0.53399549]
[1759073006908,1.6198294,4023.2,4023.1,0.53399549]
[1759073007109,1.8708294,4023.2,4023.1,0.53399549]
[1759073008311,2.3180294,4023.2,4023.1,0.53399549]
[1759073008512,2.3180294,4023.2,4023.1,0.32389549]
[1759073009909,1.8708294,4023.2,4023.1,0.32389549]
[1759073018919,1.8708294,4023.2,4023.1,0.54019549]
[1759073020617,0.1378,4022.6,4022.5,0.132]
[1759073020819,1.61751825,4022.6,4022.5,1.01018]
[1759073021010,2.1464294,4022.6,4022.5,1.01018]
[1759073021623,2.1464294,4022.6,4022.5,1.01300324]
[1759073022627,2.1464294,4022.6,4022.5,1.32980324]
[1759073022820,1.6198294,4022.6,4022.5,1.32980324]
[1759073023020,1.8708294,4022.6,4022.5,1.32980324]
[1759073024827,2.1464294,4022.6,4022.5,1.10770324]
[1759073025318,2.2326294,4022.6,4022.5,1.10770324]
[1759073025822,2.1464294,4022.6,4022.5,1.10770324]
[1759073026022,2.1464294,4022.6,4022.5,1.32230324]
[1759073031023,2.1464294,4022.6,4022.5,0.31962324]
[1759073031328,2.2326294,4022.6,4022.5,0.31962324]
[1759073032120,2.2326294,4022.6,4022.5,0.44412324]
[1759073034631,2.0086294,4022.6,4022.5,0.87602324]
[1759073035227,2.1442294,4022.6,4022.5,0.87602324]
[1759073035725,2.1442294,4022.6,4022.5,0.44412324]
[1759073035932,2.2288294,4022.6,4022.5,0.44412324]
[1759073036432,2.2288294,4022.6,4022.5,0.65862324]
[1759073036731,2.1442294,4022.6,4022.5,0.65862324]
[1759073037133,2.2288294,4022.6,4022.5,0.44412324]
[1759073040131,2.2288294,4022.6,4022.5,0.65862324]
[1759073040337,2.1442294,4022.6,4022.5,0.65862324]
[1759073040738,2.2288294,4022.6,4022.5,0.65862324]
[1759073042539,3.31974765,4022.6,4022.5,0.31962324]
[1759073044938,3.31974765,4022.6,4022.0,0.132]
[1759073044939,2.96174765,4022.6,4022.2,0.334]
[1759073045140,2.5376365,4022.3,4022.2,0.334]
[1759073045440,3.76484765,4022.3,4022.2,0.334]
[1759073045938,3.76484765,4022.3,4022.0,0.334]
[1759073045939,0.80312,4022.1,4022.0,0.334]
[1759073046134,0.2712,4021.4,4021.3,0.99591]
[1759073046328,1.61599081,4021.4,4021.3,0.99827543]
[1759073046530,2.14490196,4021.4,4021.3,1.21387543]
[1759073048437,2.14490196,4021.4,4021.3,0.76646543]
[1759073049346,2.22950196,4021.4,4021.3,0.33636543]
[1759073049642,1.97850196,4021.4,4021.3,0.33636543]
[1759073049842,2.22950196,4021.4,4021.3,0.33636543]
[1759073050238,2.49944408,4021.4,4021.3,0.33636543]
[1759073052132,2.49944408,4021.4,4021.3,0.55146543]
[1759073055346,2.41484408,4021.4,4021.3,0.55146543]
[1759073059749,2.49914408,4021.4,4021.3,0.55146543]
[1759073060635,2.41484408,4021.4,4021.3,0.55146543]
[1759073061344,2.49914408,4021.4,4021.3,0.55146543]
[1759073062354,2.41484408,4021.4,4021.3,0.55146543]
[1759073062548,2.16384408,4021.4,4021.3,0.55146543]
[1759073062755,2.41484408,4021.4,4021.3,0.55146543]
[1759073063560,2.49914408,4021.4,4021.3,0.55146543]
[1759073063747,2.24814408,4021.4,4021.3,0.55146543]
[1759073063945,2.24874408,4021.4,4021.3,0.33636543]
[1759073064148,2.49974408,4021.4,4021.3,0.33636543]
[1759073066954,2.24874408,4021.4,4021.3,0.33636543]
[1759073067257,2.49974408,4021.4,4021.3,0.33636543]
[1759073067754,2.49974408,4021.4,4021.3,0.55206543]
[1759073068156,2.24874408,4021.4,4021.3,0.55206543]
[1759073068355,2.41484408,4021.4,4021.3,0.55206543]
[1759073068753,2.16384408,4021.4,4021.3,0.76346543]
[1759073068953,2.41484408,4021.4,4021.3,0.76346543]
[1759073070660,2.16384408,4021.4,4021.3,0.76346543]
[1759073070960,2.41484408,4021.4,4021.3,0.76346543]
[1759073074663,2.16384408,4021.4,4021.3,0.76346543]
[1759073075054,2.41484408,4021.4,4021.3,0.76346543]
[1759073081266,2.49974408,4021.4,4021.3,0.76346543]
[1759073081461,2.41484408,4021.4,4021.3,0.76346543]
[1759073084767,2.16384408,4021.4,4021.3,0.76346543]
[1759073084965,2.41484408,4021.4,4021.3,0.76346543]
[1759073085863,2.16384408,4021.4,4021.3,0.76346543]
[1759073086063,2.41484408,4021.4,4021.3,0.76346543]
[1759073088772,2.16384408,4021.4,4021.3,0.76346543]
[1759073088972,2.41484408,4021.4,4021.3,0.76346543]
[1759073089172,2.16384408,4021.4,4021.3,0.76346543]
[1759073089473,2.41484408,4021.4,4021.3,0.76346543]
[1759073090072,2.49974408,4021.4,4021.3,0.55206543]
[1759073093383,2.41484408,4021.4,4020.7,2.33178543]
[1759073093677,0.535,4020.9,4020.8,0.88726]
[1759073093871,0.786,4020.9,4020.8,0.88726]
[1759073094071,2.67577152,4020.9,4020.8,0.88726]
[1759073094477,2.67577152,4020.9,4020.8,0.88960835]
[1759073095479,2.67577152,4020.9,4020.8,1.20230835]
[1759073100089,2.42477152,4020.9,4020.8,1.20230835]
[1759073100292,0.77991115,4020.9,4020.8,1.20230835]
[1759073102293,0.52891115,4020.9,4020.8,1.20230835]
[1759073102490,1.07309493,4021.1,4021.0,1.19994]
[1759073102684,1.32409493,4021.1,4021.0,1.19994]
[1759073108297,1.54209493,4021.1,4021.0,1.19994]
[1759073108692,0.78909493,4021.1,4021.0,1.32734]
[1759073109192,1.10489493,4021.1,4021.0,1.32734]
[1759073109392,1.32409493,4021.1,4021.0,1.32734]
[1759073109898,1.54209493,4021.1,4021.0,1.19994]
[1759073112195,2.63400605,4021.1,4021.0,1.19994]
[1759073122310,0.53809493,4021.1,4021.0,1.19994]
[1759073122509,0.70505803,4021.1,4021.0,2.42475112]
[1759073122711,1.25355803,4021.1,4021.0,1.33284]
[1759073122913,2.34546915,4021.1,4021.0,1.33284]
[1759073124217,0.45405803,4021.1,4021.0,1.33284]
[1759073124409,0.251,4021.1,4021.0,1.33284]
[1759073125512,0.5893,4021.1,4021.0,1.33284]
[1759073125814,0.3383,4021.1,4021.0,1.33284]
[1759073127316,0.7744,4021.1,4021.0,0.44744]
[1759073130619,1.64698368,4021.4,4021.3,1.21801]
[1759073130820,1.86918368,4021.4,4021.3,1.21801]
[1759073131115,1.89798368,4021.4,4021.3,1.21801]
[1759073132218,1.64698368,4021.4,4021.3,1.21801]
[1759073132618,1.89798368,4021.4,4021.3,1.21801]
[1759073134418,2.43235867,4021.4,4021.3,1.21801]
[1759073135020,2.65455867,4021.4,4021.3,1.21801]
[1759073135819,2.40355867,4021.4,4021.3,1.21801]
[1759073136012,2.65455867,4021.4,4021.3,1.21801]
[1759073136320,0.53724755,4021.4,4021.3,1.21801]
[1759073136817,1.08944755,4021.4,4021.3,1.21801]
[1759073137007,1.31164755,4021.4,4021.3,0.44741]
[1759073138715,1.56264755,4021.4,4021.3,0.44741]